fUST/lending_fUST_20260625
["ID","MTS","AMOUNT","RATE_DAILY","PERIOD"]
[426426576,1782376283000,-441.26696448,0.00033967,2]
[426426577,1782376283000,-380.41009888,0.00033967,2]
[426426572,1782376283000,-342.86700577,0.00033955,2]
[426426571,1782376283000,-380.25104309,0.00033955,2]
[426426570,1782376283000,-549.25008885,0.00033955,2]
[426426569,1782376283000,-162.48081055,0.00033955,2]
[426426573,1782376283000,-156.15927889,0.00033955,2]
[426426587,1782376283000,-305.51122583,0.00033967,2]
[426426567,1782376283000,-327.61208213,0.00033955,2]
[426426568,1782376283000,-448.36333614,0.00033955,2]
[426426575,1782376283000,-405.77625962,0.00033967,2]
[426426578,1782376283000,-351.01170217,0.00033967,2]
[426426579,1782376283000,-310.74877305,0.00033967,2]
[426426581,1782376283000,-642.42416513,0.00033967,2]
[426426583,1782376283000,-526.18544184,0.00033967,2]
[426426580,1782376283000,-714.62534452,0.00033967,2]
[426426582,1782376283000,-435.97056609,0.00033967,2]
[426426584,1782376283000,-473.30581066,0.00033967,2]
[426426592,1782376283000,-191.326992,0.00034285,2]
[426426593,1782376283000,-823.57367446,0.00034361,2]
[426426585,1782376283000,-583.16997521,0.00033967,2]
[426426588,1782376283000,-736.30631482,0.00033967,2]
[426426565,1782376283000,-615.53497951,0.00033955,2]
[426426618,1782376283000,-292.771806,0.00039468,21]
[426426635,1782376283000,-500.0,0.00040273,2]
[426426626,1782376283000,-500.0,0.00040273,2]
[426426655,1782376283000,-500.0,0.00040273,6]
[426426661,1782376283000,-500.0,0.00040273,6]
[426426652,1782376283000,-500.0,0.00040273,6]
[426426653,1782376283000,-500.0,0.00040273,6]
[426426654,1782376283000,-500.0,0.00040273,6]
[426426657,1782376283000,-500.0,0.00040273,6]
[426426662,1782376283000,-500.0,0.00040273,6]
[426426668,1782376283000,-500.0,0.00040273,2]
[426426666,1782376283000,-500.0,0.00040273,2]
[426426664,1782376283000,-375.68966314,0.00040273,6]
[426426665,1782376283000,-500.0,0.00040273,2]
[426426663,1782376283000,-500.0,0.00040273,6]
[426426667,1782376283000,-500.0,0.00040273,2]
[426426650,1782376283000,-500.0,0.00040273,6]
[426426674,1782376283000,-500.0,0.00040273,2]
[426426671,1782376283000,-500.0,0.00040273,2]
[426426673,1782376283000,-500.0,0.00040273,2]
[426426675,1782376283000,-500.0,0.00040273,2]
[426426672,1782376283000,-500.0,0.00040273,2]
[426426680,1782376283000,-572.02991653,0.00040273,2]
[426426681,1782376283000,-158.26,0.000403,120]
[426426679,1782376283000,-500.0,0.00040273,2]
[426426683,1782376283000,-158.27,0.000408,120]
[426426678,1782376283000,-500.0,0.00040273,2]
[426426682,1782376283000,-2102.96,0.00040444,30]
[426426677,1782376283000,-500.0,0.00040273,2]
[426426676,1782376283000,-500.0,0.00040273,2]
[426426621,1782376283000,-158.26,0.000398,120]
[426426669,1782376283000,-500.0,0.00040273,2]
[426426651,1782376283000,-500.0,0.00040273,6]
[426426670,1782376283000,-500.0,0.00040273,2]
[426426660,1782376283000,-500.0,0.00040273,6]
[426426656,1782376283000,-500.0,0.00040273,6]
[426426633,1782376283000,-500.0,0.00040273,2]
[426426622,1782376283000,-200.0,0.0004,120]
[426426632,1782376283000,-500.0,0.00040273,2]
[426426628,1782376283000,-500.0,0.00040273,2]
[426426630,1782376283000,-500.0,0.00040273,2]
[426426629,1782376283000,-500.0,0.00040273,2]
[426426624,1782376283000,-187.19701241,0.00040273,2]
[426426625,1782376283000,-500.0,0.00040273,2]
[426426623,1782376283000,-279.19843718,0.00040272,30]
[426426634,1782376283000,-500.0,0.00040273,2]
[426426631,1782376283000,-493.81328584,0.00040273,2]
[426426636,1782376283000,-500.0,0.00040273,2]
[426426640,1782376283000,-500.0,0.00040273,2]
[426426627,1782376283000,-500.0,0.00040273,2]
[426426644,1782376283000,-500.0,0.00040273,2]
[426426639,1782376283000,-500.0,0.00040273,2]
[426426658,1782376283000,-500.0,0.00040273,6]
[426426643,1782376283000,-500.0,0.00040273,2]
[426426648,1782376283000,-500.0,0.00040273,6]
[426426642,1782376283000,-500.0,0.00040273,2]
[426426645,1782376283000,-500.0,0.00040273,2]
[426426659,1782376283000,-500.0,0.00040273,6]
[426426646,1782376283000,-500.0,0.00040273,2]
[426426647,1782376283000,-500.0,0.00040273,2]
[426426641,1782376283000,-500.0,0.00040273,2]
[426426637,1782376283000,-500.0,0.00040273,2]
[426426638,1782376283000,-500.0,0.00040273,2]
[426426649,1782376283000,-500.0,0.00040273,6]
[426426717,1782376284000,-433.31064542,0.00049315,120]
[426426724,1782376284000,-500.0,0.00049315,120]
[426426720,1782376284000,-354.12215938,0.00049315,120]
[426426727,1782376284000,-432.00418461,0.00049315,120]
[426426725,1782376284000,-398.07702512,0.00049315,120]
[426426726,1782376284000,-278.5747561,0.00049315,120]
[426426719,1782376284000,-1200.0,0.00049315,2]
[426426715,1782376284000,-272.19,0.00049315,120]
[426426721,1782376284000,-199.03441146,0.00049315,120]
[426426723,1782376284000,-490.84659924,0.00049315,120]
[426426730,1782376284000,-7777.230581,0.00049315,120]
[426426718,1782376284000,-412.03821541,0.00049315,120]
[426426741,1782376284000,-404.37,0.00049315,120]
[426426733,1782376284000,-252.91605228,0.00049315,120]
[426426729,1782376284000,-476.15377208,0.00049315,120]
[426426740,1782376284000,-527.43283551,0.00049315,120]
[426426738,1782376284000,-375.78812126,0.00049315,120]
[426426728,1782376284000,-621.6887562,0.00049315,120]
[426426737,1782376284000,-631.33910769,0.00049315,120]
[426426739,1782376284000,-500.0,0.00049315,120]
[426426731,1782376284000,-205.22115,0.00049315,120]
[426426736,1782376284000,-446.41,0.00049315,120]
[426426734,1782376284000,-391.12934254,0.00049315,120]
[426426732,1782376284000,-500.0,0.00049315,120]
[426426754,1782376284000,-166.15520587,0.00049315,120]
[426426750,1782376284000,-150.21926563,0.00049315,120]
[426426716,1782376284000,-500.0,0.00049315,120]
[426426735,1782376284000,-212.51969266,0.00049315,120]
[426426722,1782376284000,-500.0,0.00049315,120]
[426426746,1782376284000,-840.172113,0.00049315,120]
[426426704,1782376284000,-391.43,0.00049315,120]
[426426688,1782376284000,-404.287043,0.00043871,120]
[426426684,1782376284000,-1466.92592113,0.00041931,2]
[426426686,1782376284000,-152.12492349,0.00042178,28]
[426426687,1782376284000,-223.76,0.00042499,64]
[426426685,1782376284000,-262.94703909,0.00042012,6]
[426426693,1782376284000,-38000.0,0.00044767,15]
[426426696,1782376284000,-152.12492349,0.00048951,35]
[426426695,1782376284000,-237.63872601,0.00048051,2]
[426426699,1782376284000,-4808.19,0.00049315,120]
[426426691,1782376284000,-200.0,0.00044,120]
[426426700,1782376284000,-500.0,0.00049315,120]
[426426701,1782376284000,-1000.0,0.00049315,2]
[426426690,1782376284000,-826.76,0.00043993,120]
[426426706,1782376284000,-306.37186371,0.00049315,120]
[426426694,1782376284000,-152.12492349,0.00045377,32]
[426426692,1782376284000,-38000.0,0.00044758,15]
[426426698,1782376284000,-389.81121349,0.000492,30]
[426426702,1782376284000,-304.80876844,0.00049315,120]
[426426705,1782376284000,-192.1383771,0.00049315,120]
[426426703,1782376284000,-316.23101213,0.00049315,120]
[426426714,1782376284000,-160.62,0.00049315,120]
[426426713,1782376284000,-428.40172145,0.00049315,120]
[426426712,1782376284000,-475.2621112,0.00049315,120]
[426426707,1782376284000,-429.92897325,0.00049315,90]
[426426711,1782376284000,-1000.0,0.00049315,2]
[426426710,1782376284000,-190.66328359,0.00049315,120]
[426426709,1782376284000,-303.74896461,0.00049315,120]
[426426708,1782376284000,-528.40826337,0.00049315,120]
[426426689,1782376284000,-160.0,0.00043871,21]
[426426742,1782376284000,-467.27604141,0.00049315,120]
[426426697,1782376284000,-389.81121352,0.000492,30]
[426426748,1782376284000,-221.30448348,0.00049315,120]
[426426773,1782376284000,-379.73595436,0.00049315,120]
[426426782,1782376284000,-631.83937522,0.00049315,120]
[426426792,1782376284000,-500.0,0.00049315,120]
[426426794,1782376284000,-363.04869327,0.00049315,120]
[426426793,1782376284000,-275.71879753,0.00049315,120]
[426426785,1782376284000,-181.2944645,0.00049315,120]
[426426781,1782376284000,-277.33681384,0.00049315,120]
[426426783,1782376284000,-425.13763032,0.00049315,120]
[426426784,1782376284000,-348.54642848,0.00049315,120]
[426426786,1782376284000,-190.57384034,0.00049315,120]
[426426791,1782376284000,-349.51071641,0.00049315,120]
[426426788,1782376284000,-301.09603741,0.00049315,120]
[426426789,1782376284000,-342.95147961,0.00049315,120]
[426426777,1782376284000,-165.35796685,0.00049315,120]
[426426790,1782376284000,-541.02941956,0.00049315,120]
[426426795,1782376284000,-244.95586513,0.00049315,120]
[426426796,1782376284000,-496.16679925,0.00049315,120]
[426426797,1782376284000,-413.92479089,0.00049315,120]
[426426800,1782376284000,-301.98483717,0.00049315,120]
[426426798,1782376284000,-488.00075366,0.00049315,120]
[426426807,1782376284000,-232.05,0.00049315,120]
[426426804,1782376284000,-158.70596969,0.00049315,120]
[426426799,1782376284000,-500.0,0.00049315,120]
[426426802,1782376284000,-239.61008406,0.00049315,120]
[426426805,1782376284000,-292.04100067,0.00049315,120]
[426426801,1782376284000,-469.34431422,0.00049315,120]
[426426806,1782376284000,-225.32793502,0.00049315,120]
[426426753,1782376284000,-346.60403021,0.00049315,120]
[426426787,1782376284000,-596.21244435,0.00049315,120]
[426426768,1782376284000,-193.55759781,0.00049315,120]
[426426803,1782376284000,-500.0,0.00049315,120]
[426426771,1782376284000,-215.41,0.00049315,120]
[426426772,1782376284000,-473.35373587,0.00049315,120]
[426426745,1782376284000,-500.0,0.00049315,120]
[426426744,1782376284000,-357.79192187,0.00049315,120]
[426426752,1782376284000,-158.26,0.00049315,120]
[426426747,1782376284000,-366.92778823,0.00049315,120]
[426426749,1782376284000,-316.82159631,0.00049315,120]
[426426743,1782376284000,-360.18642648,0.00049315,120]
[426426759,1782376284000,-500.0,0.00049315,120]
[426426764,1782376284000,-356.66399885,0.00049315,120]
[426426761,1782376284000,-452.29,0.00049315,120]
[426426760,1782376284000,-276.50035664,0.00049315,120]
[426426765,1782376284000,-216.57077382,0.00049315,120]
[426426755,1782376284000,-500.0,0.00049315,120]
[426426757,1782376284000,-405.79902579,0.00049315,120]
[426426751,1782376284000,-396.30627872,0.00049315,120]
[426426767,1782376284000,-258.53247867,0.00049315,120]
[426426758,1782376284000,-418.92628245,0.00049315,120]
[426426778,1782376284000,-449.19514921,0.00049315,120]
[426426776,1782376284000,-500.0,0.00049315,120]
[426426774,1782376284000,-418.69023472,0.00049315,120]
[426426775,1782376284000,-229.27570212,0.00049315,120]
[426426779,1782376284000,-434.06505022,0.00049315,120]
[426426770,1782376284000,-617.76804306,0.00049315,120]
[426426769,1782376284000,-170.09,0.00049315,120]
[426426763,1782376284000,-166.20308006,0.00049315,120]
[426426756,1782376284000,-500.0,0.00049315,120]
[426426766,1782376284000,-396.37466363,0.00049315,120]
[426426762,1782376284000,-370.59517692,0.00049315,120]
[426426780,1782376284000,-406.34651143,0.00049315,120]
[426426852,1782376285000,-215.94,0.00052054,120]
[426426846,1782376285000,-217.35,0.00052054,120]
[426426847,1782376285000,-362.23453352,0.00052054,120]
[426426844,1782376285000,-313.18062532,0.00052054,120]
[426426850,1782376285000,-387.04259167,0.00052054,120]
[426426843,1782376285000,-1000.0,0.00052054,2]
[426426849,1782376285000,-483.38593161,0.00052054,120]
[426426842,1782376285000,-1000.0,0.00052054,2]
[426426851,1782376285000,-591.61376287,0.00052054,120]
[426426841,1782376285000,-500.0,0.00052054,120]
[426426839,1782376285000,-217.0,0.0005119,30]
[426426854,1782376285000,-169.31417604,0.00052054,120]
[426426845,1782376285000,-1349.83436133,0.00052054,2]
[426426860,1782376285000,-152.12492349,0.00052903,38]
[426426862,1782376285000,-161.13857072,0.00052977,5]
[426426858,1782376285000,-500.0,0.00052054,120]
[426426855,1782376285000,-331.41427811,0.00052054,120]
[426426859,1782376285000,-217.0,0.0005249,30]
[426426856,1782376285000,-315.80708399,0.00052054,120]
[426426857,1782376285000,-1000.0,0.00052054,2]
[426426861,1782376285000,-160.0,0.00052977,3]
[426426863,1782376285000,-182.035413,0.00053699,21]
[426426870,1782376285000,-1000.0,0.00054794,2]
[426426868,1782376285000,-500.0,0.00054794,120]
[426426869,1782376285000,-1001.99037754,0.00054794,2]
[426426864,1782376285000,-217.0,0.0005379,30]
[426426873,1782376285000,-501.51119183,0.00054795,2]
[426426848,1782376285000,-378.19099275,0.00052054,120]
[426426853,1782376285000,-269.48,0.00052054,120]
[426426840,1782376285000,-160.0,0.000515,120]
[426426809,1782376285000,-438.14722153,0.00049315,120]
[426426832,1782376285000,-4110.76308009,0.00049485,28]
[426426865,1782376285000,-200.0,0.00054,120]
[426426808,1782376285000,-470.86581773,0.00049315,120]
[426426810,1782376285000,-156.86787102,0.00049315,120]
[426426811,1782376285000,-158.61020276,0.00049315,120]
[426426812,1782376285000,-163.49575457,0.00049315,120]
[426426813,1782376285000,-430.03387415,0.00049315,120]
[426426814,1782376285000,-182.81251189,0.00049315,120]
[426426820,1782376285000,-461.21846502,0.00049315,120]
[426426818,1782376285000,-191.13325269,0.00049315,120]
[426426817,1782376285000,-251.16053327,0.00049315,120]
[426426822,1782376285000,-394.47040983,0.00049315,120]
[426426819,1782376285000,-360.25791843,0.00049315,120]
[426426823,1782376285000,-200.11,0.00049315,120]
[426426816,1782376285000,-1000.0,0.00049315,2]
[426426821,1782376285000,-212.13317563,0.00049315,120]
[426426815,1782376285000,-370.88929423,0.00049315,120]
[426426824,1782376285000,-490.01003685,0.00049315,120]
[426426825,1782376285000,-500.0,0.00049315,120]
[426426826,1782376285000,-211.74811662,0.00049315,120]
[426426828,1782376285000,-199.7603935,0.00049315,120]
[426426829,1782376285000,-370.40878024,0.00049315,120]
[426426836,1782376285000,-247.0,0.00050137,120]
[426426833,1782376285000,-299.46150195,0.0005,2]
[426426827,1782376285000,-492.33191396,0.00049315,120]
[426426831,1782376285000,-228.70366571,0.00049315,120]
[426426830,1782376285000,-329.35408827,0.00049315,120]
[426426838,1782376285000,-2978.992767,0.00051,85]
[426426835,1782376285000,-160.0,0.0005,120]
[426426834,1782376285000,-200.0,0.0005,120]
[426426837,1782376285000,-179.9640072,0.00050995,43]
[426426866,1782376285000,-3000.0,0.000545,120]
[426426871,1782376285000,-1000.0,0.00054794,2]
[426426867,1782376285000,-160.0,0.000545,120]
[426426907,1782376285000,-500.0,0.00057534,120]
[426426909,1782376285000,-166.66666667,0.00058082,120]
[426426906,1782376285000,-1000.0,0.00057534,2]
[426426912,1782376285000,-562.14,0.00058629,120]
[426426905,1782376285000,-1000.0,0.00057534,2]
[426426913,1782376285000,-217.0,0.00059,120]
[426426911,1782376285000,-3804.88846793,0.000585,120]
[426426908,1782376285000,-217.0,0.000577,120]
[426426914,1782376285000,-490.0,0.00059642,30]
[426426915,1782376285000,-200.0,0.00059871,120]
[426426916,1782376285000,-1000.0,0.0006,30]
[426426918,1782376285000,-1000.0,0.0006,120]
[426426928,1782376285000,-874.93,0.0006,30]
[426426910,1782376285000,-200.0,0.00058201,99]
[426426929,1782376285000,-200.0,0.0006,120]
[426426919,1782376285000,-1000.0,0.0006,30]
[426426920,1782376285000,-1029.8,0.0006,120]
[426426926,1782376285000,-1000.0,0.0006,30]
[426426925,1782376285000,-1000.0,0.0006,30]
[426426922,1782376285000,-1000.0,0.0006,30]
[426426921,1782376285000,-1000.0,0.0006,30]
[426426924,1782376285000,-1000.0,0.0006,30]
[426426923,1782376285000,-1000.0,0.0006,30]
[426426927,1782376285000,-1000.0,0.0006,30]
[426426931,1782376285000,-160.0,0.0006,30]
[426426930,1782376285000,-160.0,0.0006,30]
[426426932,1782376285000,-1000.0,0.00060273,2]
[426426934,1782376285000,-500.0,0.00060273,120]
[426426917,1782376285000,-1000.0,0.0006,30]
[426426904,1782376285000,-606.74852748,0.00057534,120]
[426426933,1782376285000,-1000.0,0.00060273,2]
[426426902,1782376285000,-152.12492349,0.0005723,41]
[426426875,1782376285000,-200.0,0.00054795,96]
[426426872,1782376285000,-500.0,0.00054794,120]
[426426874,1782376285000,-200.0,0.00054795,120]
[426426876,1782376285000,-181.25841877,0.00054795,7]
[426426877,1782376285000,-500.0,0.00054795,120]
[426426878,1782376285000,-500.0,0.00054795,120]
[426426880,1782376285000,-500.0,0.00054795,120]
[426426881,1782376285000,-500.0,0.00054795,120]
[426426903,1782376285000,-237.63872601,0.00057434,2]
[426426882,1782376285000,-500.0,0.00054795,120]
[426426884,1782376285000,-500.0,0.00054795,120]
[426426879,1782376285000,-500.0,0.00054795,120]
[426426885,1782376285000,-500.0,0.00054795,120]
[426426887,1782376285000,-500.0,0.00054795,120]
[426426883,1782376285000,-500.0,0.00054795,120]
[426426888,1782376285000,-500.0,0.00054795,120]
[426426901,1782376285000,-574.03553476,0.00057,120]
[426426886,1782376285000,-500.0,0.00054795,120]
[426426900,1782376285000,-3000.0,0.000565,120]
[426426894,1782376285000,-500.0,0.00054795,120]
[426426893,1782376285000,-500.0,0.00054795,120]
[426426899,1782376285000,-217.0,0.000564,120]
[426426891,1782376285000,-500.0,0.00054795,120]
[426426892,1782376285000,-500.0,0.00054795,120]
[426426897,1782376285000,-316.8,0.000548,120]
[426426895,1782376285000,-500.0,0.00054795,120]
[426426896,1782376285000,-500.0,0.00054795,120]
[426426890,1782376285000,-500.0,0.00054795,120]
[426426889,1782376285000,-500.0,0.00054795,120]
[426426898,1782376285000,-217.0,0.0005509,120]
[426426981,1782376286000,-200.0,0.00072,120]
[426426975,1782376286000,-9336.59111009,0.00071457,120]
[426426979,1782376286000,-5000.0,0.00071466,120]
[426426974,1782376286000,-1000.0,0.00071232,2]
[426426969,1782376286000,-3971.090343,0.0006904,120]
[426426973,1782376286000,-2352.84331979,0.000711,120]
[426426970,1782376286000,-1000.0,0.0007,120]
[426426971,1782376286000,-1000.0,0.0007,120]
[426426964,1782376286000,-1000.0,0.00068493,2]
[426426958,1782376286000,-200.0,0.00068,120]
[426426972,1782376286000,-1000.0,0.00070649,120]
[426426978,1782376286000,-5000.0,0.00071466,120]
[426426993,1782376286000,-1000.0,0.00079452,2]
[426426977,1782376286000,-5000.0,0.00071466,120]
[426426980,1782376286000,-1577.31624275,0.00071466,120]
[426426984,1782376286000,-500.0,0.00074,120]
[426426982,1782376286000,-152.12492349,0.0007247,51]
[426426983,1782376286000,-1000.0,0.00073972,2]
[426426988,1782376286000,-1000.0,0.00076,120]
[426426985,1782376286000,-500.0,0.00075,60]
[426426986,1782376286000,-168.0,0.00075,120]
[426426987,1782376286000,-12805.36082843,0.00075444,120]
[426426991,1782376286000,-152.12492349,0.00078302,54]
[426426992,1782376286000,-4110.76308009,0.00079071,28]
[426426990,1782376286000,-1000.0,0.00076712,2]
[426426962,1782376286000,-200.0,0.0006811,120]
[426426976,1782376286000,-5000.0,0.00071466,120]
[426426966,1782376286000,-3000.0,0.0006901,120]
[426426952,1782376286000,-1000.0,0.00065753,2]
[426426965,1782376286000,-3000.0,0.00069,120]
[426426989,1782376286000,-179.9640072,0.00076492,60]
[426426941,1782376286000,-1000.0,0.00063013,2]
[426426938,1782376286000,-3000.0,0.000625,120]
[426426943,1782376286000,-200.0,0.00063274,120]
[426426942,1782376286000,-516.347324,0.00063013,120]
[426426940,1782376286000,-1000.0,0.00063013,2]
[426426939,1782376286000,-200.0,0.0006292,106]
[426426935,1782376286000,-5000.0,0.000605,120]
[426426936,1782376286000,-200.0,0.00060854,103]
[426426937,1782376286000,-152.12492349,0.00061933,45]
[426426944,1782376286000,-200.0,0.00064,120]
[426426945,1782376286000,-4110.76308009,0.00064278,28]
[426426956,1782376286000,-200.0,0.00067085,120]
[426426968,1782376286000,-3000.0,0.0006903,120]
[426426955,1782376286000,-152.12492349,0.00067013,48]
[426426953,1782376286000,-200.0,0.00065782,113]
[426426954,1782376286000,-200.0,0.00066758,116]
[426426950,1782376286000,-200.0,0.00065556,120]
[426426948,1782376286000,-223.761,0.00064999,120]
[426426947,1782376286000,-200.0,0.00064529,110]
[426426949,1782376286000,-1000.0,0.00065,120]
[426426951,1782376286000,-1010.83067044,0.00065753,2]
[426426957,1782376286000,-200.0,0.00067518,118]
[426426959,1782376286000,-200.0,0.0006811,120]
[426426961,1782376286000,-200.0,0.0006811,120]
[426426960,1782376286000,-200.0,0.0006811,120]
[426426963,1782376286000,-327.66976038,0.00068493,120]
[426426967,1782376286000,-3000.0,0.0006902,120]
[426426946,1782376286000,-3000.0,0.000645,120]
[426426995,1782376286000,-704.9495824,0.0008,50]
[426427001,1782376286000,-152.12492349,0.00084511,58]
[426427003,1782376286000,-1000.0,0.00085,120]
[426427029,1782376286000,-1000.0,0.00086567,2]
[426427032,1782376286000,-1000.0,0.00086567,2]
[426427028,1782376286000,-1000.0,0.00086567,2]
[426427035,1782376286000,-1000.0,0.00086567,2]
[426427036,1782376286000,-820.0,0.00086567,2]
[426427037,1782376286000,-151.0,0.00086567,120]
[426427031,1782376286000,-1000.0,0.00086567,2]
[426427038,1782376286000,-151.0,0.00086567,120]
[426427034,1782376286000,-1000.0,0.00086567,2]
[426427033,1782376286000,-1000.0,0.00086567,2]
[426427040,1782376286000,-151.0,0.000866,120]
[426427039,1782376286000,-170664.42241353,0.000866,120]
[426427030,1782376286000,-1000.0,0.00086567,2]
[426427043,1782376286000,-271.266276,0.000866,120]
[426427042,1782376286000,-271.266276,0.000866,120]
[426427049,1782376286000,-421.220042,0.000866,120]
[426427051,1782376286000,-151.0,0.000866,120]
[426427052,1782376286000,-151.0,0.000866,120]
[426427044,1782376286000,-271.266276,0.000866,120]
[426427046,1782376286000,-154.286936,0.000866,120]
[426427048,1782376286000,-421.220042,0.000866,120]
[426427050,1782376286000,-421.220042,0.000866,120]
[426427045,1782376286000,-271.266276,0.000866,120]
[426427047,1782376286000,-421.220042,0.000866,120]
[426427055,1782376286000,-223.76,0.000875,120]
[426427053,1782376286000,-151.661192,0.000866,30]
[426427041,1782376286000,-151.0,0.000866,120]
[426427027,1782376286000,-1000.0,0.00086567,2]
[426427054,1782376286000,-166.66666667,0.00086855,120]
[426427024,1782376286000,-150.0,0.00086565,2]
[426427026,1782376286000,-251.0,0.00086565,2]
[426426999,1782376286000,-1000.0,0.00082191,2]
[426427005,1782376286000,-450.0,0.00086536,2]
[426426994,1782376286000,-6046.93562609,0.0008,120]
[426426997,1782376286000,-1000.0,0.0008,120]
[426426998,1782376286000,-168.0,0.0008,120]
[426427000,1782376286000,-400.0,0.00084,120]
[426427004,1782376286000,-450.0,0.00086536,2]
[426427006,1782376286000,-450.0,0.00086536,2]
[426426996,1782376286000,-1000.0,0.0008,120]
[426427007,1782376286000,-450.0,0.00086536,2]
[426427008,1782376286000,-450.0,0.00086536,2]
[426427014,1782376286000,-150.0,0.00086536,2]
[426427012,1782376286000,-450.0,0.00086536,2]
[426427002,1782376286000,-1000.0,0.00084931,2]
[426427010,1782376286000,-450.0,0.00086536,2]
[426427009,1782376286000,-450.0,0.00086536,2]
[426427023,1782376286000,-150.0,0.00086565,2]
[426427025,1782376286000,-150.0,0.00086565,2]
[426427019,1782376286000,-150.0,0.00086536,2]
[426427021,1782376286000,-150.0,0.00086536,2]
[426427022,1782376286000,-176.0,0.00086536,2]
[426427018,1782376286000,-150.0,0.00086536,2]
[426427017,1782376286000,-150.0,0.00086536,2]
[426427015,1782376286000,-150.0,0.00086536,2]
[426427011,1782376286000,-450.0,0.00086536,2]
[426427013,1782376286000,-264.0,0.00086536,2]
[426427016,1782376286000,-150.0,0.00086536,2]
[426427020,1782376286000,-150.0,0.00086536,2]
[426427103,1782376287000,-458.4896001,0.00106795,30]
[426427089,1782376287000,-271.266276,0.001,120]
[426427087,1782376287000,-271.266276,0.001,120]
[426427086,1782376287000,-151.0,0.001,120]
[426427091,1782376287000,-421.220042,0.001,120]
[426427088,1782376287000,-271.266276,0.001,120]
[426427080,1782376287000,-3398.11143231,0.001,60]
[426427104,1782376287000,-458.4896001,0.00106795,30]
[426427093,1782376287000,-421.220042,0.001,120]
[426427085,1782376287000,-152.417673,0.001,120]
[426427101,1782376287000,-1000.0,0.00104109,2]
[426427096,1782376287000,-151.0,0.001,120]
[426427094,1782376287000,-421.220042,0.001,120]
[426427099,1782376287000,-200.0,0.00100113,120]
[426427102,1782376287000,-152.12492349,0.00105395,68]
[426427084,1782376287000,-200000.0,0.001,120]
[426427095,1782376287000,-151.0,0.001,120]
[426427097,1782376287000,-151.0,0.001,120]
[426427098,1782376287000,-1394.69845153,0.001,120]
[426427100,1782376287000,-1000.0,0.00101369,2]
[426427105,1782376287000,-1000.0,0.00106849,2]
[426427108,1782376287000,-151.1762223,0.00107123,30]
[426427110,1782376287000,-151.0,0.00107123,30]
[426427092,1782376287000,-421.220042,0.001,120]
[426427090,1782376287000,-271.266276,0.001,120]
[426427071,1782376287000,-6222.99575226,0.000975,30]
[426427083,1782376287000,-1000.0,0.001,120]
[426427107,1782376287000,-151.0,0.00107123,30]
[426427065,1782376287000,-4110.76308009,0.00093864,28]
[426427064,1782376287000,-1000.0,0.0009315,2]
[426427063,1782376287000,-152.12492349,0.00091096,61]
[426427060,1782376287000,-2000.0,0.0009,120]
[426427056,1782376287000,-1000.0,0.00087671,2]
[426427057,1782376287000,-1774.565593,0.000888,120]
[426427062,1782376287000,-1000.0,0.0009041,2]
[426427059,1782376287000,-500.0,0.0009,120]
[426427058,1782376287000,-247.05807634,0.00088875,120]
[426427061,1782376287000,-168.0,0.0009,120]
[426427081,1782376287000,-168.0,0.001,120]
[426427067,1782376287000,-600.0,0.00094304,30]
[426427069,1782376287000,-1000.0,0.0009589,2]